Cogmind - Beta 16.1 @@@ ROGUE MODE // 2026.03.05 @ 07:30:54 Player: Endlessblaze Result: Destroyed by S-27 Virus with Autogun Performance ------------- Evolutions (5) 2500 Regions Visited (9) 1800 Robots Destroyed (51) 255 Value Destroyed (1438) 1438 Prototype IDs (4) 80 Alien Tech Used (0) 0 Bonus (70) 70 TOTAL SCORE: 6143 Bonus ------- Follower Combat Kills 70 Cogmind --------- Core Integrity 0/1000 Matter 185/300 Energy 100/100 System Corruption 1% Temperature Cool (0) Movement Flying (40) Location -5/Factory Parts ------- > --- POWER (2) -------- (None) > --- PROPULSION (4) --- Biomechanical Wings > --- UTILITY (9) ------ Advanced Visual Processing Unit Makeshift Terrain Scan Processor Makeshift Hacking Suite > --- WEAPON (2) ------- (None) > --- INVENTORY (5) ---- Light Angular Momentum Engine Improved Particle Charger Trap Extractor (0/4) Hypervelocity Gauss Rifle Remote Datajack Peak State ------------ > --- POWER ------------ Light Deuterium Engine Heavy Deuterium Engine > --- PROPULSION ------- Wheel Wheel Combat Airjet Biomechanical Wings > --- UTILITY ---------- Huge Storage Unit Weight Redist. System Advanced Visual Processing Unit Signal Interpreter Makeshift Terrain Scan Processor ECM Suite Makeshift Cloaking Device Utility Shielding Makeshift Hacking Suite > --- WEAPON ----------- Shock Rifle Cooled Pulse Rifle > --- INVENTORY -------- Light Deuterium Engine Gravmag System Combat Airjet Antigrav System Improved Heat Sink Large Storage Unit Huge Storage Unit Structural Scanner Improved Terrain Scanner Seismic Detector Improved Targeting Computer Energy Filter Improved Particle Charger Core Shielding Improved Propulsion Shielding Improved Shock Absorption System EM Disruption Field System Shield Trap Extractor Shock Rifle Variable Charge Gun Coil Gun Improved Proton Missile Launcher Remote Datajack Welding Torch [Rating: 59] Favorites ----------- Power Ion Engine Engine Ion Engine Propulsion Compact Wheel Leg Improved Carbon-fiber Leg Wheel Compact Wheel Hover Unit Combat Airjet Flight Unit Biomechanical Wings Utility Makeshift Hacking Suite Device Improved Terrain Scanner Storage Large Storage Unit Processor Makeshift Terrain Scan Processor Hackware Makeshift Hacking Suite Protection Core Shielding Weapon Beam Cannon Energy Gun Backup Laser III Energy Cannon Beam Cannon Ballistic Gun Coil Gun Launcher Grenade Launcher Special Weapon Welding Torch Build | -11 -10 -9 -9 -9 -8 -8 -7 -6 -5 ------- Run | Yrd Mat Mat Min Exi Min Mat Fac Fac Fac Slots Evolved 10 | . . 2 . . . 2 2 2 2 Power 1 | . . . . . . . . 1 . Propulsion 2 | . . 1 . . . . . 1 . Utility 7 | . . 1 . . . 2 2 . 2 Weapon . | . . . . . . . . . . Parts Attached 65 | 7 4 7 . 3 . 4 21 4 15 Power 8 | 1 . 1 . 1 . . 3 1 1 Engine 8 | 1 . 1 . 1 . . 3 1 1 Core . | . . . . . . . . . . Reactor . | . . . . . . . . . . Propulsion 18 | 2 2 2 . . . . 7 1 4 Treads . | . . . . . . . . . . Leg 5 | 2 . . . . . . 3 . . Wheel 7 | . 2 2 . . . . 3 . . Hover 4 | . . . . . . . . 1 3 Flight 2 | . . . . . . . 1 . 1 Utility 24 | 2 2 2 . 1 . 3 7 1 6 Device 9 | 1 . . . . . 2 1 . 5 Storage 3 | 1 1 . . . . . 1 . . Processor 6 | . . 2 . . . . 3 1 . Hackware 2 | . 1 . . 1 . . . . . Protection 4 | . . . . . . 1 2 . 1 Artifact . | . . . . . . . . . . Weapon 15 | 2 . 2 . 1 . 1 4 1 4 Energy Gun 7 | 2 . . . . . . 3 1 1 Energy Cannon 4 | . . 2 . . . 1 1 . . Ballistic Gun 1 | . . . . . . . . . 1 Ballistic Cannon . | . . . . . . . . . . Launcher 2 | . . . . 1 . . . . 1 Special Weapon 1 | . . . . . . . . . 1 Impact Weapon . | . . . . . . . . . . Slashing Weapon . | . . . . . . . . . . Piercing Weapon . | . . . . . . . . . . Special Melee Weapon . | . . . . . . . . . . Unidentified Prototypes 4 | . . . . . . . 3 1 . Parts Lost 42 | . . 1 1 . . 6 8 . 26 Power 6 | . . . 1 . . 1 1 . 3 Propulsion 10 | . . . . . . 1 2 . 7 Utility 11 | . . . . . . . 2 . 9 Weapon 15 | . . 1 . . . 4 3 . 7 Highest Loss Streak 12 | . . 1 1 . . 5 4 . 12 To Critical Strikes . | . . . . . . . . . . Average Backups 15 | 1 7 14 12 11 12 10 20 23 17 Power . | . . . . . . . 1 1 . Propulsion 1 | 1 1 . . . . . 2 2 1 Utility 11 | . 3 9 9 10 11 9 14 15 10 Weapon 1 | . 1 2 1 1 1 . 1 2 2 Tool/Special . | . . . . . . . . . . Unused Backups 23 | . 2 3 3 2 . . 4 . 9 Power . | . . . . . . . . . . Propulsion 2 | . 1 . . . . . 1 . . Utility 14 | . . 2 2 1 . . 2 . 7 Weapon 3 | . 1 1 . . . . . . 1 Tool/Special 4 | . . . 1 1 . . 1 . 1 Average Slot Usage (%) 93 | . 100 96 91 94 100 79 93 99 75 Engine 7 | . 14 11 2 6 11 4 5 13 6 Leg 5 | . 17 . . . . . 9 . . Wheel 18 | . 10 33 33 33 33 21 9 13 5 Device 6 | . 8 . . . . 13 11 7 10 Storage 9 | . 14 11 11 11 11 9 7 6 3 Processor 12 | . . 10 11 11 11 9 17 18 15 Hackware 8 | . 5 11 11 11 11 9 7 6 5 Protection 3 | . . . . . . 2 7 6 3 Energy Gun 7 | . 28 11 . . . . 9 12 6 Energy Cannon 9 | . . 8 22 21 22 10 3 . . Peak Build Rating 59 | 7 10 16 16 16 16 21 45 52 59 Average Rating 26 | 5 8 13 14 15 16 18 37 51 46 On Entrance 18 | . 7 10 16 14 16 16 16 41 52 Avg Prop Armor Cover (%) 5 | 28 . . . . . . 10 3 3 Naked Turns . | . . . . . . . . . . Heaviest Build 107 | 15 29 33 33 31 31 34 102 105 107 Greatest Support 59 | 20 32 48 44 44 44 44 59 26 50 Greatest Overweight (x) 6 | . . . . . . 1 6 4 6 Average Overweight (x) . | . . . . . . . 1 3 1 Largest Inventory Capacity 25 | 8 15 15 15 15 15 15 25 25 25 Average Capacity 18 | 7 9 15 15 15 15 15 23 25 20 Most Carried 25 | 4 15 15 15 15 15 14 25 25 25 Average Carried 16 | 2 7 14 14 14 15 12 20 23 17 Final Capacity 25 | 8 15 15 15 15 15 15 25 25 5 Final Carried 25 | 4 15 15 14 15 15 9 25 25 5 Class Distribution -------------------- 41% | Mutant 29% | Skirmisher 26% | Commander-Mutant Dominant Class ---------------- Mutant | -10/Materials Mutant | -9/Materials Mutant | -9/Mines Commander-Mutant | -9/Exiles Commander-Mutant | -8/Mines Mutant | -8/Materials Skirmisher | -7/Factory Mutant | -6/Factory Mutant | -5/Factory Resources | -11 -10 -9 -9 -9 -8 -8 -7 -6 -5 ----------- Run | Yrd Mat Mat Min Exi Min Mat Fac Fac Fac Matter Collected 878 | 152 148 120 15 80 . . 299 . 64 Remotely . | . . . . . . . . . . Salvage Created 2448 | 169 324 180 113 273 . 189 806 . 394 Parts 126 | 13 18 14 8 10 . 7 37 . 19 Haulers Intercepted . | . . . . . . . . . . Recyclers Shooed 2 | . 1 . . . . 1 . . . Parts Field Recycled . | . . . . . . . . . . Retrieved Matter . | . . . . . . . . . . Parts Self-Destructed . | . . . . . . . . . . Prevented . | . . . . . . . . . . Parts Restored . | . . . . . . . . . . Kills | -11 -10 -9 -9 -9 -8 -8 -7 -6 -5 ------- Run | Yrd Mat Mat Min Exi Min Mat Fac Fac Fac Combat Hostiles Destroyed 28 | . 3 3 2 . . 3 13 . 4 Guns 12 | . 1 3 . . . . 7 . 1 Cannons 9 | . . . 2 . . 2 5 . . AOE 5 | . 1 . . . . 1 . . 3 Classes Destroyed 11 | 3 3 1 . . . . 4 . . Worker 6 | 1 . . 1 . . . 3 . 1 Builder 3 | . . . . . . . 2 . 1 Tunneler 5 | 4 . . . . . . 1 . . Recycler 5 | 1 2 . . . . . 2 . . Operator 1 | . 1 . . . . . . . . Watcher 3 | . 1 . . . . 1 1 . . Swarmer 6 | . . . . . . . 6 . . Grunt 14 | . 3 . 2 . . 3 2 . 4 Sentry 3 | . . 3 . . . . . . . Hunter 1 | . . . . . . . 1 . . Programmer 4 | . . . . . . . 4 . . Best Kill Streak 6 | 6 6 1 3 . . 4 4 . 5 Combat Bots Only 3 | . 3 1 2 . . 2 3 . 3 Max Kills in Single Turn 3 | 1 1 1 1 . . 1 1 . 3 Gunslinging . | . . . . . . . . . . Exploded 2 | . 1 . . . . 1 . . 2 Melee . | . . . . . . . . . . Uniques/NPCs Destroyed . | . . . . . . . . . . Combat | -11 -10 -9 -9 -9 -8 -8 -7 -6 -5 -------- Run | Yrd Mat Mat Min Exi Min Mat Fac Fac Fac Hostile Shots Fired 451 | . 10 16 15 . . 63 124 . 223 Missed 152 | . 2 5 4 . . 19 40 . 82 Hits 299 | . 8 11 11 . . 44 84 . 141 Projectile 299 | . 8 11 11 . . 44 84 . 141 AOE 1 | . . . . . . . . . 1 Critical Strikes 14 | . . 1 1 . . 2 4 . 6 Actively Blocked 5 | . . . . . . 1 3 . 1 Damage Taken 5243 | . 101 164 158 . . 765 1281 . 2774 Core 1634 | . 10 58 27 . . 272 267 . 1000 Absorbed by Shields . | . . . . . . . . . . Redirected to Shielding 207 | . . . . . . 6 42 . 159 Regen/Repaired (Parts) 20 | . . . . . . . 20 . . Core Remaining (%) 80 | 100 96 . . . 78 50 61 100 . Volleys Fired 163 | 10 12 11 8 15 . 10 75 2 20 Largest 2 | 2 2 2 2 2 . 2 2 2 2 Hottest 225 | 80 80 80 120 120 . 123 123 70 225 Shots Fired 285 | 20 24 14 16 25 . 19 141 4 22 Gun 178 | 20 24 14 . . . . 99 4 17 Cannon 97 | . . . 16 21 . 18 42 . . Launcher 9 | . . . . 4 . 1 . . 4 Special 1 | . . . . . . . . . 1 Kinetic 7 | . . . . . . . . . 7 Thermal 183 | . . . 16 21 . 16 122 2 6 Explosive 5 | . . . . 4 . 1 . . . Electromagnetic 90 | 20 24 14 . . . 2 19 2 9 Robot Hit Streak 14 | 6 7 6 8 8 . 13 14 9 2 Robot Miss Streak 5 | 3 2 1 2 2 . 4 5 1 3 Penetration Max 1 | . . . . . . . . . 1 Secondary Targets 2 | . . . . . . . 2 . . Max Gunslinging Chain 1 | . . . . . . . 1 . . Shots Hit Robots 154 | 10 15 11 7 14 . 13 73 3 8 Core Hits 103 | 7 9 6 4 13 . 11 37 1 15 Critical Kills . | . . . . . . . . . . Critical Parts Destroyed . | . . . . . . . . . . Critical Strikes 2 | 1 . . . . . . 1 . . Burn 1 | . . . . . . . 1 . . Corrupt 1 | 1 . . . . . . . . . Melee Attacks . | . . . . . . . . . . Impact . | . . . . . . . . . . Slashing . | . . . . . . . . . . Piercing . | . . . . . . . . . . Sneak Attacks . | . . . . . . . . . . Combat Hostiles . | . . . . . . . . . . Follow-up Attacks . | . . . . . . . . . . Damage Inflicted 3667 | 146 320 123 158 494 . 336 1239 60 791 Guns 1635 | 146 210 123 . . . . 834 60 262 Cannons 1081 | . . . 158 248 . 279 396 . . Explosions 942 | . 110 . . 246 . 57 . . 529 Melee . | . . . . . . . . . . Ramming 9 | . . . . . . . 9 . . Kinetic 130 | . . . . . . . . . 130 Thermal 1980 | . 110 . 158 248 . 225 1091 36 112 Explosive 303 | . . . . 246 . 57 . . . Electromagnetic 1245 | 146 210 123 . . . 54 139 24 549 Impact . | . . . . . . . . . . Slashing . | . . . . . . . . . . Piercing . | . . . . . . . . . . Highest Corruption 8 | . . . . . . . 8 . 1 Average Corruption 4 | . . . . . . . 5 . 1 Corruption Purged . | . . . . . . . . . . Corruption Blocked . | . . . . . . . . . . Effects 36 | . . . . . . . 33 . 3 Message Errors 6 | . . . . . . . 6 . . Matter Fused 6 | . . . . . . . 5 . 1 Heat Flow Errors 5 | . . . . . . . 5 . . Energy Discharges 7 | . . . . . . . 7 . . Parts Rejected 3 | . . . . . . . 2 . 1 Data Loss (minor) 1 | . . . . . . . 1 . . Data Loss (major) 3 | . . . . . . . 3 . . Misfires 2 | . . . . . . . 2 . . Alerts 1 | . . . . . . . 1 . . Weapon Failures 2 | . . . . . . . 1 . 1 Overload Shots 3 | . . . . . . . . . 3 Effects 1 | . . . . . . . . . 1 Energy Bleed 1 | . . . . . . . . . 1 Overflow Damage 66 | . . . . 25 . . . . 41 Projectiles . | . . . . . . . . . . Explosions 66 | . . . . 25 . . . . 41 Melee . | . . . . . . . . . . Knockbacks . | . . . . . . . . . . Impact . | . . . . . . . . . . Kinetic . | . . . . . . . . . . Secondary . | . . . . . . . . . . Self-Inflicted Damage 90 | . . . . . . . 1 . 89 Shots 3 | . . . . . . . . . 3 Rammed 1 | . . . . . . . 1 . . Targets Rammed 3 | . . . . . . . 3 . . Kicked 2 | . . . . . . . 2 . . Crushed . | . . . . . . . . . . Highest Temperature 450 | 90 220 31 288 180 . 214 237 . 450 Average Temperature 90 | 36 120 20 178 68 . 95 65 . 162 Received Heat Transfer 1833 | . 60 81 108 . . 414 171 . 999 Siege Activations . | . . . . . . . . . . Martial Activations . | . . . . . . . . . . Shielding Activations . | . . . . . . . . . . Robots Disrupted . | . . . . . . . . . . Combat Hostiles . | . . . . . . . . . . Robots Corrupted 1 | . 1 . . . . . . . . Combat Hostiles 1 | . 1 . . . . . . . . Parts Fried 3 | 1 . . . . . . . . 2 Impact Corruptions . | . . . . . . . . . . Robots Melted 1 | . . . . . . . 1 . . Combat Hostiles 1 | . . . . . . . 1 . . Parts Melted 9 | . . . . . . . 9 . . Heat Transferred 4222 | . 100 . 333 518 . 481 2479 74 237 Parts Sabotaged . | . . . . . . . . . . Parts Stolen . | . . . . . . . . . . Parts Stripped . | . . . . . . . . . . Power Chain Reactions 3 | . 1 . . . . . . . 2 Alert | -11 -10 -9 -9 -9 -8 -8 -7 -6 -5 ------- Run | Yrd Mat Mat Min Exi Min Mat Fac Fac Fac Maximum Alert Level . | . . . . . . . . . . Low Security (%) 100 | 100 100 100 100 . 100 100 100 100 100 Level 1 . | . . . . . . . . . . Level 2 . | . . . . . . . . . . Level 3 . | . . . . . . . . . . Level 4 . | . . . . . . . . . . Level 5 . | . . . . . . . . . . High Security . | . . . . . . . . . . Max Security . | . . . . . . . . . . Peak Influence 92 | 15 92 50 40 . . 41 62 27 65 Initial 27 | . 6 . 1 . . . 11 27 7 Average 14 | 4 19 19 9 . . 17 14 3 13 Influence Increases 1314 | 30 116 105 55 12 . 245 429 15 307 Destroy 0b10 Robot/C 600 | . 60 60 40 . . 100 260 . 80 Destroy 0b10 Robot/NC 125 | 30 20 . 5 10 . 5 45 . 10 Destroy Leader 146 | . 12 30 10 . . 12 72 . 10 Allied During Kill 11 | . . . . 2 . 9 . . . Trap Triggered on 0b10 30 | . . . . . . 30 . . . Successful Hack 78 | . 9 . . . . 21 48 . . Disable Machine 45 | . 15 . . . . 15 . . 15 Destroy Structure 24 | . . . . . . 8 4 . 12 Lose Combat Pursuer 255 | . . 15 . . . 45 . 15 180 Influence Decreases 1309 | 20 126 100 60 12 . 218 400 56 317 Entered New Map 61 | . 4 . 4 . . . 16 29 8 Time Decay 800 | 20 122 90 51 12 . 67 314 27 97 Lost Part 347 | . . 10 5 . . 50 70 . 212 Lost Ally 66 | . . . . . . 66 . . . Purge Threat 35 | . . . . . . 35 . . . Squads Dispatched 6 | . . . . . . 1 4 1 . Investigation 1 | . . . . . . . 1 . . Extermination 3 | . . . . . . . 3 . . Reinforcement 2 | . . . . . . 1 . 1 . Assault . | . . . . . . . . . . Garrison . | . . . . . . . . . . Intercept . | . . . . . . . . . . Searches Triggered . | . . . . . . . . . . Construction Impeded . | . . . . . . . . . . Haulers Reinforced . | . . . . . . . . . . Active Scanning Responses . | . . . . . . . . . . Cargo Convoy Interrupts . | . . . . . . . . . . Stealth | -11 -10 -9 -9 -9 -8 -8 -7 -6 -5 --------- Run | Yrd Mat Mat Min Exi Min Mat Fac Fac Fac Distress Signals 4 | . . 1 . . . 2 . 1 . Communications Jammed . | . . . . . . . . . . Distress Signals . | . . . . . . . . . . Times Spotted 73 | . 5 3 2 . . 12 17 2 32 Peak Tracking Total 12 | . 3 3 2 . . 7 4 2 12 Tactical Retreats 12 | . . 1 . . . 2 . 1 8 ECM-based Alert Blocks 5 | . . . . . . . . . 5 Traps | -11 -10 -9 -9 -9 -8 -8 -7 -6 -5 ------- Run | Yrd Mat Mat Min Exi Min Mat Fac Fac Fac Traps Triggered 3 | . . . . . . . 3 . . Indirectly . | . . . . . . . . . . Trap Hack Attempts . | . . . . . . . . . . Triggered . | . . . . . . . . . . Disarmed . | . . . . . . . . . . Reprogrammed 3 | . . . . . . 3 . . . Reused 3 | . . . . . . 3 . . . Traps Extracted . | . . . . . . . . . . Installed 3 | . . . . . . 3 . . . Triggered 3 | . . . . . . 3 . . . Most Traps Carried 3 | . . . 3 3 3 3 . . . Machines | -11 -10 -9 -9 -9 -8 -8 -7 -6 -5 ---------- Run | Yrd Mat Mat Min Exi Min Mat Fac Fac Fac Machines Disabled 3 | . 1 . . . . 1 . . 1 Max in Single Turn 1 | . 1 . . . . 1 . . 1 Garrison Access 2 | . . . . . . . 1 . 1 Machines Repaired . | . . . . . . . . . . Machines Dismantled . | . . . . . . . . . . Machines Sabotaged . | . . . . . . . . . . Overloaded Fab Kills . | . . . . . . . . . . Hacking | -11 -10 -9 -9 -9 -8 -8 -7 -6 -5 --------- Run | Yrd Mat Mat Min Exi Min Mat Fac Fac Fac Machines Accessed 25 | . 5 1 . 4 . 4 7 2 2 Terminals 12 | . 4 . . . . 4 1 2 1 Fabricators 1 | . . . . . . . 1 . . Repair Stations 3 | . . . . . . . 3 . . Recycling Units 2 | . 1 . . . . . 1 . . Scanalyzers 1 | . . 1 . . . . . . . Garrison Access 2 | . . . . . . . 1 . 1 Total Hacks 102 | . 13 2 . 49 . 16 14 4 4 Successful 79 | . 11 2 . 49 . 9 7 . 1 Failed 23 | . 2 . . . . 7 7 4 3 Catastrophic 5 | . 1 . . . . . 2 2 . Database Lockouts . | . . . . . . . . . . Manual 35 | . 10 . . 1 . 16 2 4 2 Terminals 34 | . 10 . . . . 16 2 4 2 Fabricators 1 | . . . . . . . 1 . . Repair Stations 8 | . . . . . . . 8 . . Recycling Units 4 | . 3 . . . . . 1 . . Scanalyzers 2 | . . 2 . . . . . . . Garrison Access 4 | . . . . . . . 2 . 2 Terminal Hacks 55 | . 2 . . 49 . 4 . . . Record 50 | . 1 . . 49 . . . . . Level Access Points 1 | . . . . . . 1 . . . Unreport Threat 2 | . . . . . . 2 . . . Reprogram Traps 1 | . . . . . . 1 . . . Hauler Manifests 1 | . 1 . . . . . . . . Fabricator Hacks 1 | . . . . . . . 1 . . Build 1 | . . . . . . . 1 . . Repair Station Hacks 4 | . . . . . . . 4 . . Scan Component 2 | . . . . . . . 2 . . Repair 1 | . . . . . . . 1 . . Refit 1 | . . . . . . . 1 . . Recycling Unit Hacks 2 | . 1 . . . . . 1 . . Report Inventory 1 | . 1 . . . . . . . . Retrieve Components 1 | . . . . . . . 1 . . Scanalyzer 2 | . . 2 . . . . . . . Insert Component 1 | . . 1 . . . . . . . Analyze 1 | . . 1 . . . . . . . Garrison Access Hacks 2 | . . . . . . . 1 . 1 Seal Access 2 | . . . . . . . 1 . 1 Unauthorized Hacks 13 | . 8 . . . . 5 . . . Terminals 11 | . 6 . . . . 5 . . . Track 5 | . 3 . . . . 2 . . . Botnet 6 | . 3 . . . . 3 . . . Fabricators . | . . . . . . . . . . Repair Stations . | . . . . . . . . . . Recycling Units 2 | . 2 . . . . . . . . Monitor 1 | . 1 . . . . . . . . Mask 1 | . 1 . . . . . . . . Scanalyzers . | . . . . . . . . . . Garrison Access . | . . . . . . . . . . Data Cores Recovered 1 | . 1 . . . . . . . . Used 1 | . 1 . . . . . . . . Hacking Detections 21 | . 5 1 . . . 4 7 2 2 Full Trace Events 1 | . . . . . . . 1 . . Feedback Events . | . . . . . . . . . . Feedback Blocked . | . . . . . . . . . . Robot Schematics Acquired . | . . . . . . . . . . Robots Built . | . . . . . . . . . . Authchips . | . . . . . . . . . . Time . | . . . . . . . . . . Total Robot Build Rating . | . . . . . . . . . . Part Schematics Acquired 1 | . . 1 . . . . . . . Parts Built 2 | . . . . . . . 2 . . Authchips . | . . . . . . . . . . Time 47 | . . . . . . . 47 . . Total Part Build Rating 10 | . . . . . . . 10 . . Part Studies Acquired . | . . . . . . . . . . Parts Repaired 1 | . . . . . . . 1 . . Time 19 | . . . . . . . 19 . . Parts Recycled . | . . . . . . . . . . Recycled Matter . | . . . . . . . . . . Retrieved Matter . | . . . . . . . . . . Retrieved Components 1 | . . . . . . . 1 . . Parts Scanalyzed 1 | . . 1 . . . . . . . Part Schematics Acquired 1 | . . 1 . . . . . . . Parts Damaged . | . . . . . . . . . . Bothacking | -11 -10 -9 -9 -9 -8 -8 -7 -6 -5 ------------ Run | Yrd Mat Mat Min Exi Min Mat Fac Fac Fac Used RIF Installer . | . . . . . . . . . . Robots Hacked . | . . . . . . . . . . Non-combat . | . . . . . . . . . . Combat . | . . . . . . . . . . Robot Hacks Applied . | . . . . . . . . . . Relay Couplers Released . | . . . . . . . . . . Fabnet Peak Effective % . | . . . . . . . . . . Robots Rewired 5 | . . . . 5 . . . . . Allies Hacked . | . . . . . . . . . . Hacks Repelled . | . . . . . . . . . . Allies | -11 -10 -9 -9 -9 -8 -8 -7 -6 -5 -------- Run | Yrd Mat Mat Min Exi Min Mat Fac Fac Fac Total Allies 5 | . . . . 5 . . . . . Largest Group 5 | . . . . 5 5 5 . . . Highest-Rated Group 53 | . . . . 53 53 53 . . . Highest-Rated Ally 21 | . . . . 21 21 21 . . . Total Orders . | . . . . . . . . . . Ally Attacks 14 | . . . . . . 14 . . . Total Damage 156 | . . . . . . 156 . . . Kills 3 | . . . . . . 3 . . . Allies Corrupted . | . . . . . . . . . . Allies Melted . | . . . . . . . . . . Intel | -11 -10 -9 -9 -9 -8 -8 -7 -6 -5 ------- Run | Yrd Mat Mat Min Exi Min Mat Fac Fac Fac Active Infowar (turns) 2979 | 34 312 . . . . 102 1980 258 293 Optics 2475 | . . . . . . . 1924 258 293 Terrain 1582 | . . . . . . 102 1433 47 . Seismic 346 | 34 312 . . . . . . . . Cloaking 168 | . . . . . . . . . 168 ECM 171 | . . . . . . . . . 171 Robot Analysis Total . | . . . . . . . . . . Derelict Logs Recovered 2 | . . . 2 . . . . . . Drone Launches . | . . . . . . . . . . Drone Recoveries . | . . . . . . . . . . Exploration | -11 -10 -9 -9 -9 -8 -8 -7 -6 -5 ------------- Run | Yrd Mat Mat Min Exi Min Mat Fac Fac Fac Turns Passed 5414 | 114 539 221 218 1523 28 186 1980 258 347 Spaces Moved 3748 | 73 289 186 194 1488 15 151 896 191 265 Core 25 | 25 . . . . . . . . . Treads . | . . . . . . . . . . Legs 447 | 48 99 . . . . . 300 . . Wheels 3120 | . 190 186 194 1488 15 151 596 191 109 Hover 42 | . . . . . . . . . 42 Flight 114 | . . . . . . . . . 114 Fastest Speed 37 | 50 100 96 96 96 96 95 95 125 37 Average Speed 110 | 96 106 96 96 96 96 96 145 127 97 Slowest Speed 296 | 120 120 100 96 96 96 110 260 140 296 Overloaded Moves . | . . . . . . . . . . Propulsion Burnouts . | . . . . . . . . . . Robots Hopped 4 | . . . . . . . . . 4 Potential Cave-ins . | . . . . . . . . . . Cave-ins Triggered . | . . . . . . . . . . Exploration Rate (%) 25 | 4 37 16 47 93 7 21 21 3 8 Regions Visited 9 Branch Regions 3 Pre-discovered Areas 1 | . . . . 1 . . . . . Known Exits Taken 3 | . . . 1 . . 1 . 1 . Unknown Exits Taken 6 | 1 1 1 . 1 1 . 1 . . Scrap Searched . | . . . . . . . . . . Spaces Dug . | . . . . . . . . . . Terrain Destroyed 22 | . . . . 9 . 7 . . 6 Melee . | . . . . . . . . . . Projectile . | . . . . . . . . . . AOE 22 | . . . . 9 . 7 . . 6 Terrain Rammed . | . . . . . . . . . . Walls Destroyed . | . . . . . . . . . . Machines Disabled . | . . . . . . . . . . Actions | -11 -10 -9 -9 -9 -8 -8 -7 -6 -5 --------- Run | Yrd Mat Mat Min Exi Min Mat Fac Fac Fac Total 4736 | 93 497 216 211 1556 28 174 1432 202 327 Wait 604 | . 175 . . 13 14 1 387 1 13 Move 3731 | 72 288 185 193 1487 14 150 895 190 257 Hop 4 | . . . . . . . . . 4 Pick Up 77 | 4 14 7 4 3 . 1 34 4 6 Fast Attach 13 | 7 . . . 1 . . 2 . 3 Attach 42 | . . 3 . . . 5 14 4 16 Detach 4 | . . . . . . 1 1 . 2 Swap 25 | . 4 4 1 3 . . 11 . 2 Drop 35 | . 4 6 5 2 . 3 10 1 4 Fire 163 | 10 12 11 8 15 . 10 75 2 20 Melee . | . . . . . . . . . . Ram 1 | . . . . . . . 1 . . Kick 2 | . . . . . . . 2 . . Crush . | . . . . . . . . . . Escape Stasis . | . . . . . . . . . . Rewire 32 | . . . . 32 . . . . . Trap 3 | . . . . . . 3 . . . Miscellaneous . | . . . . . . . . . . Route ------- -11/Scrapyard -10/Materials -9/Materials -9/Mines -9/Exiles (discovered 2 exits: [*Min x2]) -8/Mines -8/Materials (discovered 3 exits: *Fac x3) -7/Factory -6/Factory -5/Factory History --------- Turn | Location | Event 11 | -11/Scrapyard | Discovered new exit (range 15) 115 | -11/Scrapyard | Entered Materials 306 | -10/Materials | Build established: Mutant 551 | -10/Materials | Discovered new exit (range 16) 654 | -10/Materials | Entered another Materials area 654 | -9/Materials | Evolved 2 slots: Propulsion x1, Utility x1 811 | -9/Materials | Discovered new exit (range 15) 875 | -9/Materials | Entered Mines 881 | -9/Mines | Identified exit to Exiles 905 | -9/Mines | Found a hidden stash of uninstalled traps 962 | -9/Mines | Learned Materials trap positions 1086 | -9/Mines | Deemed a non-threat by the Exiles lab entrance 1093 | -9/Mines | Entered Exiles 1093 | -9/Exiles | Found Exiles lab destroyed 1287 | -9/Exiles | Learned location of Zion (-6) 1573 | -9/Exiles | Build established: Commander-Mutant 1989 | -9/Exiles | Discovered new exit (range 14) 2156 | -9/Exiles | Discovered new exit (range 14) 2616 | -9/Exiles | Entered Mines 2616 | -8/Mines | Accompanied by 5 allies 2618 | -8/Mines | Discovered new exit (range 13) 2644 | -8/Mines | Entered Materials 2644 | -8/Materials | Accompanied by 5 allies 2644 | -8/Materials | Evolved 2 slots: Utility x2 2645 | -8/Materials | Loaded intel: 13 trap records 2741 | -8/Materials | Lost 5 allies 2779 | -8/Materials | Lost 5 parts (1p1n3w) 2813 | -8/Materials | Discovered new exit (range 16) 2821 | -8/Materials | Identified exit to Factory 2830 | -8/Materials | Entered Factory 2830 | -7/Factory | Evolved 2 slots: Utility x2 3287 | -7/Factory | Build established: Skirmisher 3491 | -7/Factory | Lost 4 parts (2n1u1w) 3589 | -7/Factory | Repaired Imp. Terrain Scanner 4724 | -7/Factory | Fabricated Cmb. Airjet (x2) 4752 | -7/Factory | Discovered new exit (range 13) 4810 | -7/Factory | Entered another Factory area 4810 | -6/Factory | Evolved 2 slots: Power x1, Propulsion x1 4813 | -6/Factory | Discovered new exit (range 6) 4859 | -6/Factory | Identified exit to Factory 5068 | -6/Factory | Entered another Factory area 5068 | -5/Factory | Evolved 2 slots: Utility x2 5290 | -5/Factory | Lost 12 parts (2p2n5u3w) 5368 | -5/Factory | Lost 11 parts (1p4n4u2w) 5372 | -5/Factory | Core integrity fell below 50% 5405 | -5/Factory | Core integrity fell below 20% 5415 | -5/Factory | Destroyed by S-27 Virus with Autogun Last Messages --------------- [Achievement: Hydra] 05363_ Slug penetrates Assembly Bed. 05369_ Slug penetrates Wall. 05371_ System corrupted: Coil Gun rejected. 05371_ Acquired Coil Gun. 05377_ Slug penetrates G-50 Soldier. 05384_ Welding Torch destroyed. 05387_ K-01 Serf collects debris. 05387_ R-10 Processor collects Seismic Detector. 05390_ K-01 Serf collects debris. 05391_ Acquired Unknown Engine. 05391_ Identified Lgt. Angular Momentum Engine. 05393_ Acquired 64 matter. 05393_ Coil Gun destroyed. 05394_ K-01 Serf collects debris. 05401_ Acquired Hyp. Gauss Rifle. 05402_ Acquired Xenon Bombardment Thruster. 05404_ Neutrino Reactor explodes. 05404_ Emergency Access malfunctions. 05408_ Xenon Bombardment Thruster destroyed. Map ----- +----------------------------------------------------+ | ?????????????????????????????????????????????????? | | ?????????????????????????????????????????????????? | | ?????????????????????????????????????????????????? | | ?????????????????????????????????????????????????? | | ?????????????????????????????????????????????????? | | ?????????????????????????????????????############# | | ?????????????????????????????????????# | | ?????????????##############???????#### | | ?????????????# #???????# / !! """ | | ?????????????# #???????# ## [! """ | | ?????????????# """""" #???????# ## [! """ | | ?????????????# """""" #########/## | | ?????????????# """""" # ## ! | | ?????????????# """""" # """""" !##########+### | | ?????????????# # """""" # | | ?????????????# """""" # """""" # | | ?????????????# """""" / """""" # | | ?????????????# """""" # # | | ?????????????# """""" # | # !! | | ?????????????# # # !! # | | ??#################+#############+### ! # | | ? ggs # | | ? g * # | | """ << s = |%! # | | """ << = # | | """ "<< @ # | | "u< k ######### # | | << #???????# # | | << # ??????# # | | << #! "???# # | | # " " # | | # " " + =|! | | R! #???????# % =" | | #################""T""#######???????# =%=# | | ?????????????????#"""""#?????????????# [=!%# | | ??????????????????#######?????????????#^ =%[ | | ## ????????????????????????????????????????#^^![ | | ???????????????????????????????????????????# | | ???????????????????????????????????????????# %% | | ??????????????????????????????###########??# % | | ??????????????????????????????# ??#^ %%% | | ??????????????????????????????#"" ?# ^ % % | | ??????????????????????????????#"T [ ?# | | ??????????????????????????????#"" # """ | | ??????????????????????????????# """ # """ | | ??????????????????????????????+ """ + """ | | ??????????????????????????????# """ # """ | | ??????????????????????????????# !*# | | ??????????????????????????????# """ ! !?# """ | | ??????????????????????????????# """ ?# """ | +----------------------------------------------------+ Best States ------------- Heat Dissipation 40 Energy Generation 27 Energy Capacity 350 Matter Stores 300 Matter Capacity 300 Sight Range 20 Terrain Scan Range 16 Terrain Scan Density 135 ECM Strength 1 Cloak Strength 3 Additional Mass Support 6 Armor Coverage 225 Core Shielding 20 Propulsion Shielding 66 Utility Shielding 33 Evasion (%) 62 Targeting Accuracy 6 Energy Filtering 30 Offensive Hacking 11 Trap Extractor Capacity 4 Item Schematics ----------------- Grenade Launcher | -9/Materials | Scanalyzed Robot Schematics ------------------ None Fabricated ------------ Cmb. Airjet | x2 | -7/Factory | Preloaded Repaired ---------- Imp. Terrain Scanner | 9% | -7/Factory Studied --------- None Alien Tech Used ----------------- None Achievements -------------- Hydra Omniscient Cartographer Challenges ------------ None Game ------ Seed ShockboltGravjetPower Manual? 0 Play Time 01:03:15 Cumulative 47.7 hours Start 2026.03.05 @ 06:23:26 End 2026.03.05 @ 07:30:54 Sessions 1 Manual Loads 0 Difficulty Rogue Special Mode None Game No. 69 Rogue 69 Adventurer 0 Explorer 0 Win Type - Total 0 Types 0/0/0/0/0/0/0/0/0/0 Lore% 41 Gallery% 31 Achievement% 22 Wizard Run 0 Options --------- Layout 1 ASCII 0 Keyboard 0 Movement Arrows Keybinds 0 Fullscreen 1 Font 16/SmallcapsGlow Map View 55x38 Zoom Use 0% Tactical HUD 1 Map Filters NONE Filters NONE Steam 1 RUN: 14d4402d-e8c6-4426-b98b-c26202ab3beb